fUSD/lending_fUSD_20260228
["ID","MTS","AMOUNT","RATE_DAILY","PERIOD"]
[406858375,1772242240716,-1000.0,0.00013203,2]
[406858376,1772242240726,-32881.30820754,0.0001322,2]
[406858377,1772242240735,-470.43340613,0.00013498,2]
[406858378,1772242240745,-19307.45,0.00013513,2]
[406858379,1772242240755,-12723.5155952,0.00013598,2]
[406858380,1772242240765,-500.0,0.00013698,2]
[406858381,1772242240775,-500.0,0.00013698,2]
[406858382,1772242240785,-500.0,0.00013698,2]
[406858383,1772242240795,-500.0,0.00013698,2]
[406858384,1772242240805,-269.57915282,0.00013698,2]
[406858385,1772242240815,-500.0,0.00013698,2]
[406858386,1772242240824,-500.0,0.00013698,2]
[406858387,1772242240834,-500.0,0.00013698,2]
[406858388,1772242240843,-500.0,0.00013698,2]
[406858389,1772242240853,-500.0,0.00013698,2]
[406858390,1772242240864,-500.0,0.00013698,2]
[406858391,1772242240874,-500.0,0.00013698,2]
[406858392,1772242240884,-500.0,0.00013698,2]
[406858393,1772242240893,-500.0,0.00013698,2]
[406858394,1772242240903,-500.0,0.00013698,2]
[406858395,1772242240913,-500.0,0.00013698,2]
[406858396,1772242240922,-500.0,0.00013698,2]
[406858397,1772242240932,-500.0,0.00013698,2]
[406858398,1772242240942,-500.0,0.00013698,2]
[406858399,1772242240951,-500.0,0.00013698,2]
[406858400,1772242240960,-500.0,0.00013698,2]
[406858401,1772242240970,-500.0,0.00013698,2]
[406858402,1772242240979,-500.0,0.00013698,2]
[406858403,1772242240989,-500.0,0.00013698,2]
[406858404,1772242240998,-500.0,0.00013698,2]
[406858405,1772242241009,-500.0,0.00013698,2]
[406858406,1772242241019,-500.0,0.00013698,2]
[406858407,1772242241029,-467.36158262,0.00013698,2]
[406858408,1772242241038,-500.0,0.00013698,2]
[406858409,1772242241048,-500.0,0.00013698,2]
[406858410,1772242241057,-500.0,0.00013698,2]
[406858411,1772242241066,-500.0,0.00013698,2]
[406858412,1772242241076,-500.0,0.00013698,2]
[406858413,1772242241085,-500.0,0.00013698,2]
[406858414,1772242241095,-500.0,0.00013698,2]
[406858415,1772242241105,-500.0,0.00013698,2]
[406858416,1772242241114,-500.0,0.00013698,2]
[406858417,1772242241124,-589.57625125,0.00013698,2]
[406858418,1772242241133,-1720.14982419,0.00013698,2]
[406858419,1772242241143,-348.8120897,0.00013698,2]
[406858420,1772242241153,-500.0,0.00013698,2]
[406858421,1772242241162,-622.52528036,0.00013698,2]
[406858422,1772242241172,-500.0,0.00013698,2]
[406858423,1772242241182,-500.0,0.00013698,2]
[406858424,1772242241191,-500.0,0.00013698,2]
[406858425,1772242241201,-500.0,0.00013698,2]
[406858426,1772242241211,-500.0,0.00013698,2]
[406858427,1772242241221,-500.0,0.00013698,2]
[406858428,1772242241230,-500.0,0.00013698,2]
[406858429,1772242241240,-500.0,0.00013698,2]
[406858430,1772242241249,-523.439675,0.00013698,2]
[406858431,1772242241260,-500.0,0.00013698,2]
[406858432,1772242241270,-500.0,0.00013698,2]
[406858433,1772242241280,-500.0,0.00013698,2]
[406858434,1772242241290,-500.0,0.00013698,2]
[406858435,1772242241300,-500.0,0.00013698,2]
[406858436,1772242241311,-500.0,0.00013698,2]
[406858437,1772242241321,-500.0,0.00013698,2]
[406858438,1772242241331,-500.0,0.00013698,2]
[406858439,1772242241340,-500.0,0.00013698,2]
[406858440,1772242241352,-500.0,0.00013698,2]
[406858441,1772242241364,-500.0,0.00013698,2]
[406858442,1772242241373,-500.0,0.00013698,2]
[406858443,1772242241383,-500.0,0.00013698,2]
[406858444,1772242241394,-500.0,0.00013698,2]
[406858445,1772242241404,-500.0,0.00013698,2]
[406858446,1772242241414,-500.0,0.00013698,2]
[406858447,1772242241425,-500.0,0.00013698,2]
[406858448,1772242241434,-500.0,0.00013698,2]
[406858449,1772242241443,-500.0,0.00013698,2]
[406858450,1772242241453,-327.3904498,0.00013698,2]
[406858451,1772242241463,-500.0,0.00013698,2]
[406858452,1772242241473,-500.0,0.00013698,2]
[406858453,1772242241483,-500.0,0.00013698,2]
[406858454,1772242241493,-500.0,0.00013698,2]
[406858455,1772242241502,-500.0,0.00013698,2]
[406858456,1772242241512,-500.0,0.00013698,2]
[406858457,1772242241521,-500.0,0.00013698,2]
[406858458,1772242241531,-500.0,0.00013698,2]
[406858459,1772242241541,-500.0,0.00013698,2]
[406858460,1772242241551,-500.0,0.00013698,2]
[406858461,1772242241561,-500.0,0.00013698,2]
[406858462,1772242241570,-500.0,0.00013698,2]
[406858463,1772242241580,-500.0,0.00013698,2]
[406858464,1772242241590,-500.0,0.00013698,2]
[406858465,1772242241600,-500.0,0.00013698,2]
[406858466,1772242241610,-500.0,0.00013698,2]
[406858467,1772242241620,-500.0,0.00013698,2]
[406858468,1772242241630,-500.0,0.00013698,2]
[406858469,1772242241640,-500.0,0.00013698,2]
[406858470,1772242241649,-500.0,0.00013698,2]
[406858471,1772242241659,-500.0,0.00013698,2]
[406858472,1772242241669,-500.0,0.00013698,2]
[406858473,1772242241678,-500.0,0.00013698,2]
[406858474,1772242241688,-500.0,0.00013698,2]
[406858475,1772242241825,-500.0,0.00013698,2]
[406858476,1772242241837,-500.0,0.00013698,2]
[406858477,1772242241847,-500.0,0.00013698,2]
[406858478,1772242241857,-210.48,0.00013698,2]
[406858479,1772242241866,-500.0,0.00013698,2]
[406858480,1772242241876,-500.0,0.00013698,2]
[406858481,1772242241886,-500.0,0.00013698,2]
[406858482,1772242241896,-500.0,0.00013698,2]
[406858483,1772242241906,-500.0,0.00013698,2]
[406858484,1772242241916,-500.0,0.00013698,2]
[406858485,1772242241925,-500.0,0.00013698,2]
[406858486,1772242241935,-376.82834865,0.00013698,2]
[406858487,1772242241945,-516.39770794,0.00013698,2]
[406858488,1772242241956,-500.0,0.00013698,2]
[406858489,1772242241966,-500.0,0.00013698,2]
[406858490,1772242241976,-500.0,0.00013698,2]
[406858491,1772242241986,-500.0,0.00013698,2]
[406858492,1772242241996,-153.30354988,0.00013698,2]
[406858493,1772242242006,-504.35511504,0.00013698,2]
[406858494,1772242242016,-500.0,0.00013698,2]
[406858495,1772242242026,-500.0,0.00013698,2]
[406858496,1772242242036,-500.0,0.00013698,2]
[406858497,1772242242046,-500.0,0.00013698,2]
[406858498,1772242242056,-500.0,0.00013698,2]
[406858499,1772242242066,-500.0,0.00013698,2]
[406858500,1772242242075,-500.0,0.00013698,2]
[406858501,1772242242086,-500.0,0.00013698,2]
[406858502,1772242242095,-500.0,0.00013698,2]
[406858503,1772242242105,-500.0,0.00013698,2]
[406858504,1772242242115,-500.0,0.00013698,2]
[406858505,1772242242124,-500.0,0.00013698,2]
[406858506,1772242242134,-500.0,0.00013698,2]
[406858507,1772242242143,-500.0,0.00013698,2]
[406858508,1772242242153,-500.0,0.00013698,2]
[406858509,1772242242162,-500.0,0.00013698,2]
[406858510,1772242242172,-500.0,0.00013698,2]
[406858511,1772242242181,-217.45849177,0.00013698,2]
[406858512,1772242242191,-500.0,0.00013698,2]
[406858513,1772242242201,-500.0,0.00013698,2]
[406858514,1772242242211,-500.0,0.00013698,2]
[406858515,1772242242220,-500.0,0.00013698,2]
[406858516,1772242242231,-500.0,0.00013698,2]
[406858517,1772242242241,-500.0,0.00013698,2]
[406858518,1772242242250,-500.0,0.00013698,2]
[406858519,1772242242260,-500.0,0.00013698,2]
[406858520,1772242242270,-500.0,0.00013698,2]
[406858521,1772242242279,-829.56,0.00013698,2]
[406858522,1772242242289,-829.56,0.00013698,2]
[406858523,1772242242299,-829.56,0.00013698,2]
[406858524,1772242242309,-829.56,0.00013698,2]
[406858525,1772242242318,-829.56,0.00013698,2]
[406858526,1772242242328,-829.56,0.00013698,2]
[406858527,1772242242338,-500.0,0.00013698,2]
[406858528,1772242242349,-829.56,0.00013698,2]
[406858529,1772242242361,-500.0,0.00013698,2]
[406858530,1772242242370,-829.56,0.00013698,2]
[406858531,1772242242379,-500.0,0.00013698,2]
[406858532,1772242242389,-829.56,0.00013698,2]
[406858533,1772242242398,-500.0,0.00013698,2]
[406858534,1772242242407,-500.0,0.00013698,2]
[406858535,1772242242417,-500.0,0.00013698,2]
[406858536,1772242242428,-500.0,0.00013698,2]
[406858537,1772242242438,-500.0,0.00013698,2]
[406858538,1772242242448,-500.0,0.00013698,2]
[406858539,1772242242458,-500.0,0.00013698,2]
[406858540,1772242242468,-500.0,0.00013698,2]
[406858541,1772242242479,-500.0,0.00013698,2]
[406858542,1772242242490,-500.0,0.00013698,2]
[406858543,1772242242501,-500.0,0.00013698,2]
[406858544,1772242242511,-500.0,0.00013698,2]
[406858545,1772242242521,-500.0,0.00013698,2]
[406858546,1772242242531,-500.0,0.00013698,2]
[406858547,1772242242541,-500.0,0.00013698,2]
[406858548,1772242242551,-500.0,0.00013698,2]
[406858549,1772242242561,-500.0,0.00013698,2]
[406858550,1772242242570,-500.0,0.00013698,2]
[406858551,1772242242579,-500.0,0.00013698,2]
[406858552,1772242242588,-500.0,0.00013698,2]
[406858553,1772242242600,-500.0,0.00013698,2]
[406858554,1772242242609,-500.0,0.00013698,2]
[406858555,1772242242618,-500.0,0.00013698,2]
[406858556,1772242242627,-500.0,0.00013698,2]
[406858557,1772242242637,-500.0,0.00013698,2]
[406858558,1772242242646,-500.0,0.00013698,2]
[406858559,1772242242656,-500.0,0.00013698,2]
[406858560,1772242242666,-500.0,0.00013698,2]
[406858561,1772242242675,-500.0,0.00013698,2]
[406858562,1772242242685,-432.44397161,0.00013698,2]
[406858563,1772242242695,-587.0377833,0.00013698,2]
[406858564,1772242242704,-200.0,0.00013699,2]
[406858565,1772242242714,-842.63,0.00013699,2]
[406858566,1772242242724,-164.29010834,0.00013699,2]
[406858567,1772242242733,-500.0,0.00013699,2]
[406858568,1772242242743,-500.0,0.00013699,2]
[406858569,1772242242753,-500.0,0.00013699,2]
[406858570,1772242242763,-288.09474142,0.00013699,2]
[406858571,1772242242773,-500.0,0.00013699,2]
[406858572,1772242242784,-500.0,0.00013699,2]
[406858573,1772242242793,-500.0,0.00013699,2]
[406858574,1772242242803,-526.85264,0.00013699,2]
[406858575,1772242242812,-500.0,0.00013699,2]
[406858576,1772242242822,-500.0,0.00013699,2]
[406858577,1772242242831,-500.0,0.00013699,2]
[406858578,1772242242840,-500.0,0.00013699,2]
[406858579,1772242242851,-500.0,0.00013699,2]
[406858580,1772242242861,-500.0,0.00013699,2]
[406858581,1772242242870,-502.28503114,0.00013699,2]
[406858582,1772242242880,-500.0,0.00013699,2]
[406858583,1772242242889,-500.0,0.00013699,2]
[406858584,1772242242899,-500.0,0.00013699,2]
[406858585,1772242242908,-500.0,0.00013699,2]
[406858586,1772242242917,-500.0,0.00013699,2]
[406858587,1772242242927,-500.0,0.00013699,2]
[406858588,1772242242943,-500.0,0.00013699,2]
[406858589,1772242242953,-310.9054072,0.00013699,2]
[406858590,1772242242963,-500.0,0.00013699,2]
[406858591,1772242242973,-500.0,0.00013699,2]
[406858592,1772242242983,-500.0,0.00013699,2]
[406858593,1772242242993,-507.14846603,0.00013699,2]
[406858594,1772242243006,-500.0,0.00013699,2]
[406858595,1772242243015,-500.0,0.00013699,2]
[406858596,1772242243025,-500.0,0.00013699,2]
[406858597,1772242243034,-500.0,0.00013699,2]
[406858598,1772242243044,-500.0,0.00013699,2]
[406858599,1772242243054,-500.0,0.00013699,2]
[406858600,1772242243065,-500.0,0.00013699,2]
[406858601,1772242243076,-500.0,0.00013699,2]
[406858602,1772242243087,-500.0,0.00013699,2]
[406858603,1772242243097,-161.8,0.000137,2]
[406858604,1772242243107,-508.0,0.0001411,2]
[406858605,1772242243116,-1000.0,0.00014247,2]
[406858606,1772242243125,-1000.0,0.00014247,2]
[406858607,1772242243135,-1000.0,0.00014247,2]
[406858608,1772242243145,-1000.0,0.00014247,2]
[406858609,1772242243155,-1000.0,0.00014247,2]
[406858610,1772242243164,-511.75824776,0.00014247,2]
[406858611,1772242243174,-1000.0,0.00014247,2]
[406858612,1772242243183,-1000.0,0.00014247,2]
[406858613,1772242243192,-1000.0,0.00014247,2]
[406858614,1772242243202,-509.93232969,0.00014247,2]
[406858615,1772242243211,-1000.0,0.00014247,2]
[406858616,1772242243221,-1000.0,0.00014247,2]
[406858617,1772242243230,-512.76163768,0.00014247,2]
[406858618,1772242243240,-1008.10480934,0.00014247,2]
[406858619,1772242243250,-1000.0,0.00014247,2]
[406858620,1772242243260,-1000.0,0.00014247,2]
[406858621,1772242243269,-1000.0,0.00014247,2]
[406858622,1772242243279,-1000.0,0.00014247,2]
[406858623,1772242243289,-1000.0,0.00014247,2]
[406858624,1772242243299,-1000.0,0.00014247,2]
[406858625,1772242243309,-1000.0,0.00014247,2]
[406858626,1772242243319,-1000.0,0.00014247,2]
[406858627,1772242243328,-1000.0,0.00014247,2]
[406858628,1772242243337,-1000.0,0.00014247,2]
[406858629,1772242243349,-1000.0,0.00014247,2]
[406858630,1772242243365,-1000.0,0.00014247,2]
[406858631,1772242243375,-1000.0,0.00014247,2]
[406858632,1772242243385,-3162.0,0.00014253,2]
[406858633,1772242243395,-32881.30820754,0.0001439,2]
[406858634,1772242243405,-151.0,0.00014634,2]
[406858635,1772242243414,-151.0,0.00014634,2]
[406858636,1772242243425,-500.0,0.00014794,2]
[406858637,1772242243435,-500.0,0.00014794,2]
[406858638,1772242243444,-1500.0,0.00014795,2]
[406858639,1772242243453,-1500.0,0.00014795,2]
[406858640,1772242243463,-1500.0,0.00014795,2]
[406858641,1772242243473,-1144.44196517,0.00014795,2]
[406858642,1772242243483,-429.49570382,0.00014795,2]
[406858643,1772242243493,-1439.17979886,0.00014795,2]
[406858644,1772242243502,-1500.0,0.00014795,2]
[406858645,1772242243513,-1500.0,0.00014795,2]
[406858646,1772242243523,-1511.45189164,0.00014795,2]
[406858647,1772242243535,-1147.84261484,0.00014795,2]
[406858648,1772242243544,-1500.0,0.00014795,2]
[406858649,1772242243554,-1500.0,0.00014795,2]
[406858650,1772242243563,-1597.09510233,0.00014795,2]
[406858651,1772242243573,-1500.0,0.00014795,2]
[406858652,1772242243582,-741.17434169,0.00014795,2]
[406858653,1772242243592,-1500.0,0.00014795,2]
[406858654,1772242243602,-1500.0,0.00014795,2]
[406858655,1772242243612,-1500.0,0.00014795,2]
[406858656,1772242243621,-1500.0,0.00014795,2]
[406858657,1772242243631,-1500.0,0.00014795,2]
[406858658,1772242243640,-1500.0,0.00014795,2]
[406858659,1772242243649,-1500.0,0.00014795,2]
[406858660,1772242243659,-1500.0,0.00014795,2]
[406858661,1772242243669,-9984.67,0.00014853,2]
[406858662,1772242243678,-4800.0,0.000149,5]
[406858663,1772242243688,-250.0,0.00015,2]
[406858664,1772242243697,-874.83,0.00015068,2]
[406858665,1772242243707,-455.84702,0.0001531,7]
[406858666,1772242243717,-9999.99,0.0001531,2]
[406858667,1772242243726,-902.4,0.0001531,2]
[406858668,1772242243736,-29999.99,0.0001531,2]
[406858669,1772242243746,-599.83,0.00015342,2]
[406858670,1772242243755,-2000.0,0.00015342,2]
[406858671,1772242243765,-2000.0,0.00015342,2]
[406858672,1772242243774,-1516.10263761,0.00015342,2]
[406858673,1772242243783,-215.41849404,0.00015342,2]
[406858674,1772242243793,-203.52805437,0.00015342,2]
[406858675,1772242243802,-2000.0,0.00015342,2]
[406858676,1772242243812,-2000.0,0.00015342,2]
[406858677,1772242243821,-2000.0,0.00015342,2]
[406858678,1772242243831,-1201.13446519,0.00015342,2]
[406858679,1772242243840,-538.67533251,0.00015342,2]
[406858680,1772242243849,-2000.0,0.00015342,2]
[406858681,1772242243859,-2000.0,0.00015342,2]
[406858682,1772242243868,-1505.60534384,0.00015342,2]
[406858683,1772242243878,-2000.0,0.00015342,2]
[406858684,1772242243887,-1614.542994,0.00015342,2]
[406858685,1772242243896,-1000.0,0.00015342,2]
[406858686,1772242243906,-160.0,0.00015414,2]
[406858687,1772242243915,-174.00015664,0.00015414,2]
[406858688,1772242243925,-4401.551937,0.00015462,7]
[406858689,1772242243935,-186.781262,0.00015462,7]
[406858690,1772242243944,-230.89,0.00015525,2]
[406858691,1772242243954,-50000.0,0.0001556,2]
[406858692,1772242243963,-32881.30820754,0.0001556,2]
[406858693,1772242243973,-606.0,0.00015678,2]
[406858694,1772242243982,-708.62062,0.0001589,2]
[406858695,1772242243992,-2500.0,0.0001589,2]
[406858696,1772242244002,-2500.0,0.0001589,2]
[406858697,1772242244012,-2028.27485084,0.0001589,2]
[406858698,1772242244021,-1005.53161927,0.0001589,2]
[406858699,1772242244031,-2275.06944665,0.0001589,2]
[406858700,1772242244041,-2500.0,0.0001589,2]
[406858701,1772242244051,-1023.31974037,0.0001589,2]
[406858702,1772242244060,-500.0,0.00015959,2]
[406858703,1772242244070,-500.0,0.00015959,2]
[406858704,1772242244080,-829.56,0.00015959,2]
[406858705,1772242244089,-500.0,0.00015959,2]
[406858706,1772242244099,-500.0,0.00015959,2]
[406858707,1772242244109,-500.0,0.00015959,2]
[406858708,1772242244119,-5018.36116075,0.0001596,2]
[406858709,1772242244129,-150.0,0.00016089,2]
[406858710,1772242244140,-9999.99,0.00016116,2]
[406858711,1772242244149,-1000.0,0.00016272,7]
[406858712,1772242244160,-266.68789925,0.00016438,2]
[406858713,1772242244170,-2291.80881226,0.00016438,2]
[406858714,1772242244179,-1484.08045004,0.00016438,2]
[406858715,1772242244189,-3000.0,0.00016438,2]
[406858716,1772242244198,-500.0,0.0001658,2]
[406858717,1772242244208,-174.61919141,0.0001658,2]
[406858718,1772242244218,-500.0,0.0001658,2]
[406858719,1772242244228,-500.0,0.0001658,2]
[406858720,1772242244238,-668.65185757,0.0001658,2]
[406858721,1772242244248,-151.0,0.0001658,2]
[406858722,1772242244257,-269.917619,0.0001658,2]
[406858723,1772242244267,-151.0,0.0001658,2]
[406858724,1772242244276,-316.29223115,0.0001658,2]
[406858725,1772242244286,-500.0,0.0001658,2]
[406858726,1772242244295,-500.0,0.0001658,2]
[406858727,1772242244304,-500.0,0.0001658,2]
[406858728,1772242244314,-500.0,0.0001658,2]
[406858729,1772242244324,-500.0,0.0001658,2]
[406858730,1772242244335,-500.0,0.0001658,2]
[406858731,1772242244344,-500.0,0.0001658,2]
[406858732,1772242244357,-500.0,0.0001658,2]
[406858733,1772242244367,-500.0,0.0001658,2]
[406858734,1772242244376,-500.0,0.0001658,2]
[406858735,1772242244386,-500.0,0.0001658,2]
[406858736,1772242244397,-500.0,0.0001658,2]
[406858737,1772242244407,-693.3919763,0.00016635,2]
[406858738,1772242244417,-154.60993757,0.00016635,2]
[406858739,1772242244427,-719.04747942,0.0001669,2]
[406858740,1772242244438,-32881.30820754,0.0001673,2]
[406858741,1772242244448,-745.65223616,0.00016745,2]
[406858742,1772242244457,-500.0,0.00016755,2]
[406858743,1772242244467,-500.0,0.00016755,2]
[406858744,1772242244477,-773.2413689,0.000168,2]
[406858745,1772242244488,-2000.0,0.0001681,2]
[406858746,1772242244498,-801.85129955,0.00016855,2]
[406858747,1772242244507,-831.51979763,0.0001691,2]
[406858748,1772242244517,-2000.0,0.0001691,2]
[406858749,1772242244526,-304.59,0.00016912,2]
[406858750,1772242244535,-150.0,0.00016938,7]
[406858751,1772242244544,-862.28603014,0.00016965,2]
[406858752,1772242244554,-3500.0,0.00016986,2]
[406858753,1772242244564,-300.0,0.00017,2]
[406858754,1772242244574,-2000.0,0.0001701,2]
[406858755,1772242244583,-894.19061326,0.0001702,2]
[406858756,1772242244592,-927.27566595,0.00017075,2]
[406858757,1772242244602,-181.08010149,0.00017128,2]
[406858758,1772242244611,-279.9045709,0.00017128,2]
[406858759,1772242244621,-156.60529538,0.00017128,2]
[406858760,1772242244630,-961.58486559,0.0001713,2]
[406858761,1772242244640,-997.16350561,0.00017185,2]
[406858762,1772242244658,-200.0,0.00017365,2]
[406858763,1772242244679,-168.0,0.00017377,2]
[406858764,1772242244696,-168.0,0.00017453,2]
[406858765,1772242244716,-168.0,0.00017499,2]
[406858766,1772242244735,-168.0,0.00017512,2]
[406858767,1772242244744,-168.0,0.00017517,2]
[406858768,1772242244754,-3974.15344995,0.00017534,2]
[406858769,1772242244764,-10000.0,0.0001754,2]
[406858770,1772242244773,-1022.28549037,0.0001764,2]
[406858771,1772242244782,-1102.47432427,0.0001764,2]
[406858772,1772242244792,-1021.25552734,0.0001764,2]
[406858773,1772242244802,-1081.64069689,0.0001764,2]
[406858774,1772242244811,-1110.94039521,0.0001764,2]
[406858775,1772242244820,-1044.358096,0.0001764,2]
[406858776,1772242244830,-1136.39581006,0.0001764,2]
[406858777,1772242244839,-1036.48903481,0.0001764,2]
[406858778,1772242244848,-1050.49082038,0.0001764,2]
[406858779,1772242244858,-1011.59006048,0.0001764,2]
[406858780,1772242244869,-1100.67955232,0.0001764,2]
[406858781,1772242244879,-1081.45374,0.0001764,2]
[406858782,1772242244888,-1116.296109,0.0001764,2]
[406858783,1772242244898,-1121.08751064,0.0001764,2]
[406858784,1772242244907,-1101.34009882,0.0001764,2]
[406858785,1772242244916,-1141.81636324,0.0001764,2]
[406858786,1772242244926,-1078.59568869,0.0001764,2]
[406858787,1772242244936,-1013.58195533,0.0001764,2]
[406858788,1772242244946,-1037.51202318,0.0001764,2]
[406858789,1772242244955,-1030.76222644,0.0001764,2]
[406858790,1772242244964,-1061.90370287,0.0001764,2]
[406858791,1772242244974,-1019.32529097,0.0001764,2]
[406858792,1772242244983,-1149.99392733,0.0001764,2]
[406858793,1772242244993,-852.07897153,0.0001764,2]
[406858794,1772242245003,-230.89,0.00017664,2]
[406858795,1772242245012,-168.0,0.00017699,2]
[406858796,1772242245021,-150.0,0.00017699,2]
[406858797,1772242245031,-813.0,0.00017699,2]
[406858798,1772242245041,-6000.0,0.000177,6]
[406858799,1772242245050,-813.0,0.00017754,2]
[406858800,1772242245060,-1200.0,0.000178,6]
[406858801,1772242245070,-5000.0,0.00017808,2]
[406858802,1772242245079,-150.0,0.00017808,2]
[406858803,1772242245088,-800.0,0.00017808,2]
[406858804,1772242245098,-813.0,0.00017809,2]
[406858805,1772242245108,-151.0,0.00017827,2]
[406858806,1772242245117,-500.0,0.00017829,2]
[406858807,1772242245127,-500.0,0.00017829,2]
[406858808,1772242245136,-140119.13037712,0.0001783,2]
[406858809,1772242245145,-168.0,0.00017842,2]
[406858810,1772242245154,-150.0,0.00017863,2]
[406858811,1772242245164,-813.0,0.00017863,2]
[406858812,1772242245174,-245.08232808,0.000179,2]
[406858813,1772242245183,-344.27374594,0.000179,2]
[406858814,1772242245194,-429.99193826,0.000179,2]
[406858815,1772242245203,-669.70898048,0.000179,2]
[406858816,1772242245213,-926.91238002,0.000179,2]
[406858817,1772242245222,-1200.0,0.000179,6]
[406858818,1772242245231,-32881.30820754,0.000179,2]
[406858819,1772242245241,-11847.0,0.000179,2]
[406858820,1772242245250,-150.0,0.00017918,2]
[406858821,1772242245390,-813.0,0.00017918,2]
[406858822,1772242245400,-150.0,0.00017972,2]
[406858823,1772242245410,-813.0,0.00017973,2]
[406858824,1772242245421,-503.03652017,0.00017982,2]
[406858825,1772242245432,-500.0,0.00017989,2]
[406858826,1772242245442,-500.0,0.00017989,2]
[406858827,1772242245452,-829.56,0.00017989,2]
[406858828,1772242245464,-500.0,0.00017989,2]
[406858829,1772242245474,-500.0,0.00017989,2]
[406858830,1772242245485,-500.0,0.00017989,2]
[406858831,1772242245495,-1352.03500146,0.0001799,2]
[406858832,1772242245505,-1352.03500146,0.0001799,2]
[406858834,1772242245515,-151.0,0.00017997,2]
[406858836,1772242245526,-151637.5898536,0.00017999,2]
[406858837,1772242245535,-500.0,0.00017999,2]
[406858838,1772242245545,-500.0,0.00017999,2]
[406858839,1772242245554,-636.77928561,0.00017999,2]
[406858840,1772242245564,-500.0,0.00017999,2]
[406858841,1772242245574,-4195.352937,0.00017999,2]
[406858842,1772242245583,-500.0,0.00017999,2]
[406858843,1772242245593,-500.0,0.00017999,2]
[406858844,1772242245603,-500.0,0.00017999,2]
[406858845,1772242245612,-500.0,0.00017999,2]
[406858846,1772242245623,-500.0,0.00017999,2]
[406858847,1772242245632,-500.0,0.00017999,2]
[406858849,1772242245642,-500.0,0.00017999,2]
[406858850,1772242245652,-500.0,0.00017999,2]
[406858851,1772242245662,-250.0,0.00017999,2]
[406858852,1772242245671,-300.0,0.00017999,2]
[406858853,1772242245681,-500.0,0.00017999,2]
[406858854,1772242245691,-187.70521173,0.00017999,2]
[406858855,1772242245701,-500.0,0.00017999,2]
[406858856,1772242245711,-500.0,0.00017999,2]
[406858857,1772242245720,-500.0,0.00017999,2]
[406858858,1772242245731,-500.0,0.00017999,2]
[406858859,1772242245740,-500.0,0.00017999,2]
[406858860,1772242245750,-500.0,0.00017999,2]
[406858862,1772242245759,-522.57762627,0.00017999,2]
[406858863,1772242245770,-300.0,0.00017999,2]
[406858864,1772242245780,-18454.631541,0.00017999,2]
[406858865,1772242245790,-12586.0588109,0.00017999,2]
[406858866,1772242245800,-500.0,0.00017999,2]
[406858867,1772242245810,-500.0,0.00017999,2]
[406858868,1772242245819,-313.34247632,0.00017999,2]
[406858869,1772242245828,-500.0,0.00017999,2]
[406858870,1772242245838,-500.0,0.00017999,2]
[406858871,1772242245848,-500.0,0.00017999,2]
[406858872,1772242245858,-500.0,0.00017999,2]
[406858873,1772242245867,-500.0,0.00017999,2]
[406858874,1772242245877,-500.0,0.00017999,2]
[406858875,1772242245886,-500.0,0.00017999,2]
[406858876,1772242245896,-200.46401906,0.00017999,2]
[406858877,1772242245906,-829.56,0.00017999,2]
[406858878,1772242245915,-829.56,0.00017999,2]